[Event "FIDE Rating Open 2024"]
[Site "Dhaka"]
[Date "2024.01.22"]
[Round "8.6"]
[White "Sagor"]
[Black "Mehdi Hasan Parag"]
[Result "0-1"]
[ECO "C77"]
[WhiteElo "1979"]
[BlackElo "2171"]
[Annotator "RC"]
[PlyCount "130"]
[EventDate "2024.01.16"]
[EventType "swiss"]
[EventCountry "BAN"]
[SourceTitle "playchess.com"]
[Source "ChessBase"]
[SourceQuality "1"]
[TimeControl "5400+30"]

1. e4 {[%emt 0:00:07]} e5 {[%emt 0:00:25]} 2. Nf3 {[%emt 0:00:10]} Nc6 {[%emt 0:00:04]} 3. Bb5 {[%emt 0:00:15]} a6 {[%emt 0:00:03]} 4. Ba4 {[%emt 0:00:12]} Nf6 {[%emt 0:00:09]} 5. d4 {[%emt 0:00:37]} Nxd4 {[%emt 0:03:21]} 6. Nxd4 {[%emt 0:01:33]} exd4 {[%emt 0:00:10]} 7. e5 {[%emt 0:01:37]} Ne4 {[%emt 0:00:54]} 8. Qxd4 {[%emt 0:02:48]} Nc5 {[%emt 0:00:15]} 9. O-O {[%emt 0:01:24]} Nxa4 {[%emt 0:00:08]} 10. Qxa4 {[%emt 0:00:04]} b5 {[%emt 0:01:42]} 11. Qe4 {[%emt 0:02:17]} Rb8 {[%emt 0:00:09]} 12. Nc3 {[%emt 0:01:15]} Be7 {[%emt 0:00:59]} 13. Qg4 {[%emt 0:01:33]} Kf8 {[%emt 0:00:19]} 14. Qh5 {[%emt 0:02:00]} Rb6 {[%emt 0:02:05]} 15. Be3 {[%emt 0:04:44]} Rg6 {[%emt 0:03:06]} 16. Qf3 {[%emt 0:02:42]} h5 {[%emt 0:03:06]} 17. Kh1 {[%emt 0:01:48]} h4 {[%emt 0:00:22]} 18. h3 {[%emt 0:00:55]} b4 {[%emt 0:01:04]} 19. Ne2 {[%emt 0:01:52]} Kg8 {[%emt 0:02:03]} 20. Qe4 {[%emt 0:03:57]} d5 {[%emt 0:02:46]} 21. exd6 {[%emt 0:00:27]} Bxd6 {[%emt 0:00:18]} 22. Rad1 {[%emt 0:02:42]} Qf6 {[%emt 0:05:43]} 23. Bd4 {[%emt 0:05:55]} Qf5 {[%emt 0:02:20]} 24. Qxf5 {[%emt 0:01:33]} Bxf5 {[%emt 0:00:03]} 25. c4 {[%emt 0:00:43]} bxc3 {[%emt 0:00:19]} 26. Bxc3 {[%emt 0:00:37]} Rh5 {[%emt 0:01:10]} 27. Nd4 {[%emt 0:01:44]} Be4 {[%emt 0:00:58]} 28. f3 {[%emt 0:02:04]} Bd5 {[%emt 0:00:35]} 29. a3 {[%emt 0:01:32]} Rhg5 {[%emt 0:00:44]} 30. Rf2 {[%emt 0:01:17]} Bg3 {[%emt 0:08:14]} 31. Re2 {[%emt 0:05:29]} Bc4 {[%emt 0:01:15]} 32. Re4 {[%emt 0:04:16]} Rd6 {[%emt 0:16:16]} 33. b3 {[%emt 0:21:09]} Bxb3 {[%emt 0:01:20]} 34. Rb1 {[%emt 0:00:11]} Ba4 {[%emt 0:00:50]} 35. Be1 {[%emt 0:02:55]} Bb5 {[%emt 0:04:29]} 36. Bxg3 {[%emt 0:02:50]} hxg3 {[%emt 0:00:04]} 37. Nxb5 {[%emt 0:02:30]} Rxb5 {[%emt 0:41:12]} 38. Rbe1 {[%emt 0:00:40]} f5 {[%emt 0:00:00]} 39. R4e3 {[%emt 0:00:40]} f4 {[%emt 0:00:00]} 40. Re4 {[%emt 0:00:31]} Rf5 {[%emt 0:00:00]} 41. Kg1 {[%emt 0:00:52]} Rd2 {[%emt 0:00:00]} 42. Rc1 {[%emt 0:00:45]} c5 {[%emt 0:00:00]} 43. Kf1 {[%emt 0:00:25]} Rf2+ {[%emt 0:00:00]} 44. Kg1 {[%emt 0:00:15]} Kh7 {[%emt 0:00:00]} 45. Rec4 {[%emt 0:01:47]} Ra2 {[%emt 0:00:00]} 46. a4 {[%emt 0:00:27]} g5 {[%emt 0:00:00]} 47. Kf1 {[%emt 0:01:04]} Kg6 {[%emt 0:00:00]} 48. Re4 {[%emt 0:02:26]} Rf2+ {[%emt 0:00:00]} 49. Kg1 {[%emt 0:00:09]} Rd2 {[%emt 0:00:00]} 50. Kf1 {[%emt 0:02:29]} Rd4 {[%emt 0:00:00]} 51. Re6+ {[%emt 0:02:23]} Rf6 {[%emt 0:00:00]} 52. Re5 {[%emt 0:01:40]} Rc6 {[%emt 0:00:00]} 53. a5 {[%emt 0:01:12]} c4 {[%emt 0:00:00]} 54. Ke2 {[%emt 0:00:21]} Kf6 {[%emt 0:00:00]} 55. Re8 {[%emt 0:03:59]} Re6+ {[%emt 0:00:00]} 56. Rxe6+ {[%emt 0:00:01]} Kxe6 {[%emt 0:00:00]} 57. Rb1 {[%emt 0:00:21]} Kd5 {[%emt 0:00:00]} 58. Rb8 {[%emt 0:01:07]} Kc5 {[%emt 0:00:00]} 59. Rg8 {[%emt 0:00:33]} Rd5 {[%emt 0:00:00]} 60. Rc8+ {[%emt 0:01:50]} Kb4 {[%emt 0:00:00]} 61. Rc6 {[%emt 0:00:58]} Rxa5 {[%emt 0:00:00]} 62. h4 {[%emt 0:01:14]} gxh4 {[%emt 0:00:00]} 63. Rf6 {[%emt 0:00:19]} Ra2+ {[%emt 0:00:00]} 64. Kf1 {[%emt 0:00:08]} Ra1+ {[%emt 0:00:00]} 65. Ke2 {[%emt 0:00:09]} h3 {[%emt 0:00:00]} 0-1

[Event "FIDE Rating Open 2024"]
[Site "Dhaka"]
[Date "2024.01.23"]
[Round "9.1"]
[White "Mohammad Minhaz Uddin"]
[Black "Subrota, Biswas"]
[Result "1/2-1/2"]
[ECO "D40"]
[WhiteElo "2224"]
[BlackElo "2223"]
[Annotator "RC"]
[PlyCount "42"]
[EventDate "2024.01.16"]
[EventType "swiss"]
[EventCountry "BAN"]
[SourceTitle "playchess.com"]
[Source "ChessBase"]
[SourceQuality "1"]
[TimeControl "5400+30"]

1. e4 {[%emt 0:00:03]} c6 {[%emt 0:02:00]} 2. d4 {[%emt 0:02:14]} d5 {[%emt 0:01:02]} 3. exd5 {[%emt 0:00:05]} cxd5 {[%emt 0:00:04]} 4. c4 {[%emt 0:00:10]} Nf6 {[%emt 0:00:04]} 5. Nc3 {[%emt 0:00:04]} e6 {[%emt 0:00:05]} 6. Nf3 {[%emt 0:00:07]} Be7 {[%emt 0:00:04]} 7. Bd3 {[%emt 0:00:05]} O-O {[%emt 0:00:11]} 8. O-O {[%emt 0:00:03]} dxc4 {[%emt 0:00:22]} 9. Bxc4 {[%emt 0:00:02]} a6 {[%emt 0:01:44]} 10. a3 {[%emt 0:03:26]} b5 {[%emt 0:00:41]} 11. Bb3 {[%emt 0:00:17]} Bb7 {[%emt 0:00:29]} 12. Qd3 {[%emt 0:14:04]} Nbd7 {[%emt 0:12:19]} 13. Bc2 {[%emt 0:01:02]} Qc7 {[%emt 0:14:03]} 14. Bg5 {[%emt 0:07:37]} Rfd8 {[%emt 0:14:05]} 15. Rac1 {[%emt 0:08:34]} Rac8 {[%emt 0:06:46]} 16. Rfd1 {[%emt 0:09:27]} Qb8 {[%emt 0:06:42]} 17. Qe2 {[%emt 0:08:26]} Re8 {[%emt 0:01:41]} 18. Ne5 {[%emt 0:05:32]} Nxe5 {[%emt 0:05:59]} 19. dxe5 {[%emt 0:00:21]} Nd5 {[%emt 0:31:39]} 20. Bxe7 {[%emt 0:11:33]} Nxc3 {[%emt 0:00:00]} 21. bxc3 {[%emt 0:08:15]} Rxe7 {[%emt 0:00:00]} 1/2-1/2

[Event "FIDE Rating Open 2024"]
[Site "Dhaka"]
[Date "2024.01.23"]
[Round "9.2"]
[White "Rahman, Ziaur"]
[Black "Abu Sufian, Shakil"]
[Result "1/2-1/2"]
[ECO "D30"]
[WhiteElo "2428"]
[BlackElo "2199"]
[Annotator "RC"]
[PlyCount "224"]
[EventDate "2024.01.16"]
[EventType "swiss"]
[EventCountry "BAN"]
[SourceTitle "playchess.com"]
[Source "ChessBase"]
[SourceQuality "1"]
[TimeControl "5400+30"]

1. Nf3 {[%emt 0:00:15]} d5 {[%emt 0:00:05]} 2. c4 {[%emt 0:01:09]} c6 {[%emt 0:00:54]} 3. e3 {[%emt 0:00:35]} Nf6 {[%emt 0:00:08]} 4. d4 {[%emt 0:00:44]} e6 {[%emt 0:00:13]} 5. Nbd2 {[%emt 0:00:46]} Nbd7 {[%emt 0:02:46]} 6. b3 {[%emt 0:00:42]} Bd6 {[%emt 0:01:20]} 7. Bb2 {[%emt 0:00:09]} Qc7 {[%emt 0:04:37]} 8. Bd3 {[%emt 0:04:25]} O-O {[%emt 0:01:43]} 9. O-O {[%emt 0:03:47]} Re8 {[%emt 0:03:33]} 10. Rc1 {[%emt 0:24:13]} e5 {[%emt 0:14:23]} 11. c5 {[%emt 0:01:10]} e4 {[%emt 0:01:23]} 12. cxd6 {[%emt 0:00:22]} Qxd6 {[%emt 0:00:02]} 13. Bb1 {[%emt 0:01:59]} exf3 {[%emt 0:00:10]} 14. Qxf3 {[%emt 0:00:43]} Nf8 {[%emt 0:00:53]} 15. Rfe1 {[%emt 0:01:01]} Bg4 {[%emt 0:14:59]} 16. Qg3 {[%emt 0:00:11]} Qd7 {[%emt 0:00:05]} 17. f3 {[%emt 0:01:46]} Bf5 {[%emt 0:01:42]} 18. e4 {[%emt 0:01:47]} Bg6 {[%emt 0:00:59]} 19. b4 {[%emt 0:05:10]} Rad8 {[%emt 0:06:41]} 20. e5 {[%emt 0:03:59]} Nh5 {[%emt 0:00:19]} 21. Qh4 {[%emt 0:01:43]} Bxb1 {[%emt 0:01:33]} 22. Nxb1 {[%emt 0:04:23]} g6 {[%emt 0:00:20]} 23. Nd2 {[%emt 0:00:45]} Ne6 {[%emt 0:01:26]} 24. Nb3 {[%emt 0:01:12]} Rf8 {[%emt 0:05:27]} 25. Re3 {[%emt 0:02:36]} Nhg7 {[%emt 0:37:19]} 26. Qf2 {[%emt 0:02:18]} Nf5 {[%emt 0:00:00]} 27. Ree1 {[%emt 0:00:03]} Qe7 {[%emt 0:00:00]} 28. Qd2 {[%emt 0:00:46]} h5 {[%emt 0:00:00]} 29. a4 {[%emt 0:00:24]} a6 {[%emt 0:00:00]} 30. Nc5 {[%emt 0:00:41]} Nxc5 {[%emt 0:00:00]} 31. bxc5 {[%emt 0:01:08]} Ng7 {[%emt 0:00:00]} 32. Rb1 {[%emt 0:00:27]} Ne6 {[%emt 0:00:00]} 33. Bc1 {[%emt 0:01:04]} Rd7 {[%emt 0:00:00]} 34. Qf2 {[%emt 0:02:29]} f5 {[%emt 0:00:00]} 35. f4 {[%emt 0:01:51]} Rf7 {[%emt 0:00:00]} 36. Rb3 {[%emt 0:00:37]} Rh7 {[%emt 0:00:00]} 37. Be3 {[%emt 0:00:11]} Qd8 {[%emt 0:00:00]} 38. Reb1 {[%emt 0:00:54]} h4 {[%emt 0:00:00]} 39. Bd2 {[%emt 0:01:01]} Rdg7 {[%emt 0:00:00]} 40. Rf3 {[%emt 0:00:54]} Kh8 {[%emt 0:00:00]} 41. Kh1 {[%emt 0:00:22]} Kg8 {[%emt 0:00:00]} 42. Rf1 {[%emt 0:04:24]} Kh8 {[%emt 0:00:00]} 43. Be3 {[%emt 0:00:38]} Kg8 {[%emt 0:00:00]} 44. Qd2 {[%emt 0:00:22]} Rh5 {[%emt 0:00:00]} 45. Qc2 {[%emt 0:01:17]} Kh8 {[%emt 0:00:00]} 46. Rb1 {[%emt 0:00:22]} Kg8 {[%emt 0:00:00]} 47. Kg1 {[%emt 0:01:15]} Kh8 {[%emt 0:00:00]} 48. Kf1 {[%emt 0:00:51]} Kg8 {[%emt 0:00:00]} 49. Rb6 {[%emt 0:00:41]} Kh8 {[%emt 0:00:00]} 50. Ke1 {[%emt 0:00:40]} Kg8 {[%emt 0:00:00]} 51. Kd1 {[%emt 0:00:19]} Kh8 {[%emt 0:00:00]} 52. Kc1 {[%emt 0:00:53]} Kg8 {[%emt 0:00:00]} 53. Kb1 {[%emt 0:00:44]} Kh8 {[%emt 0:00:00]} 54. Bf2 {[%emt 0:01:27]} Kg8 {[%emt 0:00:00]} 55. Ka2 {[%emt 0:01:04]} Kh8 {[%emt 0:00:00]} 56. Be3 {[%emt 0:02:08]} Rhh7 {[%emt 0:00:00]} 57. Rf2 {[%emt 0:00:30]} Rf7 {[%emt 0:00:13]} 58. Qb1 {[%emt 0:00:49]} Qf8 {[%emt 0:01:00]} 59. Rfb2 {[%emt 0:00:41]} Nd8 {[%emt 0:00:47]} 60. R6b3 {[%emt 0:00:07]} Qh6 {[%emt 0:01:48]} 61. Qe1 {[%emt 0:01:39]} Ne6 {[%emt 0:00:24]} 62. Qa5 {[%emt 0:01:41]} Qh5 {[%emt 0:03:01]} 63. Qb6 {[%emt 0:01:13]} Qd1 {[%emt 0:01:16]} 64. Rd2 {[%emt 0:00:42]} Qf1 {[%emt 0:01:30]} 65. Qb4 {[%emt 0:02:51]} h3 {[%emt 0:01:20]} 66. g3 {[%emt 0:00:11]} Qf3 {[%emt 0:00:53]} 67. Rf2 {[%emt 0:01:46]} Qh5 {[%emt 0:00:42]} 68. Qd2 {[%emt 0:00:40]} Rd7 {[%emt 0:00:22]} 69. Qe1 {[%emt 0:00:57]} Rhf7 {[%emt 0:00:23]} 70. Qf1 {[%emt 0:00:39]} Kg8 {[%emt 0:00:17]} 71. Rfb2 {[%emt 0:00:29]} Kh8 {[%emt 0:00:39]} 72. Qb1 {[%emt 0:01:10]} Kg8 {[%emt 0:00:40]} 73. Qe1 {[%emt 0:02:03]} Kh8 {[%emt 0:00:15]} 74. Rf2 {[%emt 0:00:26]} Kg8 {[%emt 0:00:26]} 75. Rb1 {[%emt 0:00:22]} Rh7 {[%emt 0:00:39]} 76. Ka3 {[%emt 0:00:33]} Kh8 {[%emt 0:00:32]} 77. Qa5 {[%emt 0:01:05]} Rhf7 {[%emt 0:00:25]} 78. Qb4 {[%emt 0:01:09]} Kg8 {[%emt 0:00:07]} 79. Bd2 {[%emt 0:01:00]} Kh8 {[%emt 0:00:14]} 80. Qb2 {[%emt 0:00:20]} Kg8 {[%emt 0:00:16]} 81. Bc3 {[%emt 0:00:58]} Kh8 {[%emt 0:00:26]} 82. Qd2 {[%emt 0:00:26]} Kg8 {[%emt 0:00:06]} 83. Ba5 {[%emt 0:01:20]} Rh7 {[%emt 0:00:35]} 84. Rb3 {[%emt 0:00:10]} Rhf7 {[%emt 0:00:12]} 85. Bb6 {[%emt 0:00:40]} Rf8 {[%emt 0:00:42]} 86. Rf1 {[%emt 0:00:20]} Rff7 {[%emt 0:02:45]} 87. Rfb1 {[%emt 0:00:18]} g5 {[%emt 0:02:28]} 88. fxg5 {[%emt 0:01:17]} f4 {[%emt 0:01:03]} 89. g6 {[%emt 0:00:34]} Rf5 {[%emt 0:01:19]} 90. gxf4 {[%emt 0:02:25]} Rxf4 {[%emt 0:00:08]} 91. Rd3 {[%emt 0:00:10]} Qh4 {[%emt 0:00:44]} 92. Rd1 {[%emt 0:00:15]} Rg7 {[%emt 0:00:07]} 93. Qc3 {[%emt 0:00:52]} Rxg6 {[%emt 0:01:23]} 94. Rxh3 {[%emt 0:00:02]} Qf2 {[%emt 0:00:09]} 95. Rd2 {[%emt 0:00:41]} Qg1 {[%emt 0:00:58]} 96. Rhd3 {[%emt 0:01:24]} Rf1 {[%emt 0:00:18]} 97. Ba7 {[%emt 0:00:55]} Rc1 {[%emt 0:01:41]} 98. Rc2 {[%emt 0:01:14]} Rxc2 {[%emt 0:00:45]} 99. Qxc2 {[%emt 0:00:02]} Qa1+ {[%emt 0:00:49]} 100. Kb4 {[%emt 0:00:43]} Nxd4 {[%emt 0:02:43]} 101. Qd1 {[%emt 0:01:53]} Qb2+ {[%emt 0:00:00]} 102. Ka5 {[%emt 0:00:05]} Nc2 {[%emt 0:00:00]} 103. Qd2 {[%emt 0:00:29]} Rg4 {[%emt 0:00:00]} 104. Rg3 {[%emt 0:00:23]} Rxg3 {[%emt 0:00:54]} 105. hxg3 {[%emt 0:00:01]} Qb3 {[%emt 0:00:33]} 106. Qg5+ {[%emt 0:00:46]} Kh7 {[%emt 0:00:10]} 107. Qh4+ {[%emt 0:00:23]} Kg6 {[%emt 0:00:32]} 108. Qg4+ {[%emt 0:00:17]} Kh7 {[%emt 0:00:10]} 109. Qf5+ {[%emt 0:01:39]} Kg7 {[%emt 0:00:13]} 110. Qg5+ {[%emt 0:00:26]} Kh7 {[%emt 0:00:06]} 111. Qh4+ {[%emt 0:00:59]} Kg6 {[%emt 0:00:02]} 112. Qg4+ {[%emt 0:00:06]} Kh7 {[%emt 0:00:04]} 1/2-1/2

[Event "FIDE Rating Open 2024"]
[Site "Dhaka"]
[Date "2024.01.23"]
[Round "9.3"]
[White "Rahman, Syed Mahfuzur"]
[Black "Zia, Tahsin Tajwar"]
[Result "1/2-1/2"]
[ECO "A46"]
[WhiteElo "2087"]
[BlackElo "2275"]
[Annotator "RC"]
[PlyCount "101"]
[EventDate "2024.01.16"]
[EventType "swiss"]
[EventCountry "BAN"]
[SourceTitle "playchess.com"]
[Source "ChessBase"]
[SourceQuality "1"]
[TimeControl "5400+30"]

1. d4 {[%emt 0:14:37]} Nf6 {[%emt 0:00:28]} 2. Nf3 {[%emt 0:00:10]} e6 {[%emt 0:00:06]} 3. g3 {[%emt 0:00:02]} b5 {[%emt 0:00:04]} 4. Bg2 {[%emt 0:01:01]} Bb7 {[%emt 0:00:02]} 5. O-O {[%emt 0:06:09]} c5 {[%emt 0:01:42]} 6. b3 {[%emt 0:07:16]} Nc6 {[%emt 0:02:13]} 7. Bb2 {[%emt 0:05:36]} Qb6 {[%emt 0:02:24]} 8. a4 {[%emt 0:01:57]} b4 {[%emt 0:02:59]} 9. Nbd2 {[%emt 0:09:56]} d5 {[%emt 0:00:31]} 10. dxc5 {[%emt 0:05:11]} Bxc5 {[%emt 0:00:47]} 11. Bxf6 {[%emt 0:01:31]} gxf6 {[%emt 0:00:11]} 12. Rc1 {[%emt 0:05:07]} a5 {[%emt 0:02:14]} 13. c4 {[%emt 0:00:31]} bxc3 {[%emt 0:05:56]} 14. Rxc3 {[%emt 0:00:18]} Nb4 {[%emt 1:17:53]} 15. Nb1 {[%emt 0:12:07]} Ke7 {[%emt 0:00:00]} 16. Qd2 {[%emt 0:04:44]} h5 {[%emt 0:00:00]} 17. Nh4 {[%emt 0:06:09]} Rag8 {[%emt 0:00:00]} 18. e3 {[%emt 0:02:20]} Bd6 {[%emt 0:00:00]} 19. Rcc1 {[%emt 0:01:44]} Rg4 {[%emt 0:00:00]} 20. Nc3 {[%emt 0:03:12]} Rhg8 {[%emt 0:00:00]} 21. Ne2 {[%emt 0:04:28]} d4 {[%emt 0:00:00]} 22. Bxb7 {[%emt 0:00:15]} Qxb7 {[%emt 0:00:00]} 23. Ng2 {[%emt 0:00:17]} d3 {[%emt 0:00:00]} 24. Nef4 {[%emt 0:02:45]} Bxf4 {[%emt 0:00:00]} 25. exf4 {[%emt 0:00:14]} Rd8 {[%emt 0:00:00]} 26. Rc5 {[%emt 0:01:35]} Qb6 {[%emt 0:00:00]} 27. Rb5 {[%emt 0:01:28]} Qa7 {[%emt 0:00:00]} 28. Qe3 {[%emt 0:01:37]} Qc7 {[%emt 0:00:00]} 29. Qc5+ {[%emt 0:01:48]} Qxc5 {[%emt 0:00:00]} 30. Rxc5 {[%emt 0:00:02]} Rd5 {[%emt 0:03:46]} 31. Rxd5 {[%emt 0:00:32]} Nxd5 {[%emt 0:00:05]} 32. Rd1 {[%emt 0:00:41]} Nb4 {[%emt 0:05:09]} 33. Ne1 {[%emt 0:00:35]} Rg8 {[%emt 0:00:00]} 34. Nxd3 {[%emt 0:00:21]} Rd8 {[%emt 0:00:00]} 35. Nb2 {[%emt 0:00:08]} Rxd1+ {[%emt 0:00:00]} 36. Nxd1 {[%emt 0:00:01]} Nc2 {[%emt 0:02:00]} 37. Ne3 {[%emt 0:02:00]} Nxe3 38. fxe3 {[%emt 0:00:02]} Kd6 {[%emt 0:00:00]} 39. Kf2 {[%emt 0:00:52]} Kc5 {[%emt 0:00:00]} 40. Ke2 {[%emt 0:00:34]} Kb4 {[%emt 0:00:00]} 41. Kd3 {[%emt 0:00:05]} Kxb3 {[%emt 0:00:00]} 42. e4 {[%emt 0:00:49]} f5 {[%emt 0:00:00]} 43. e5 {[%emt 0:00:29]} Kb4 {[%emt 0:03:30]} 44. Kd4 {[%emt 0:00:07]} Kxa4 {[%emt 0:00:00]} 45. Kc4 {[%emt 0:00:02]} Ka3 {[%emt 0:00:00]} 46. Kc3 {[%emt 0:00:07]} a4 {[%emt 0:00:00]} 47. h3 {[%emt 0:00:22]} Ka2 {[%emt 0:00:00]} 48. Kc2 {[%emt 0:00:06]} Ka3 {[%emt 0:00:00]} 49. Kc3 {[%emt 0:00:03]} Ka2 {[%emt 0:00:00]} 50. Kc2 {[%emt 0:00:04]} Ka1 {[%emt 0:00:00]} 51. Kc1 {[%emt 0:00:03]} 1/2-1/2

[Event "FIDE Rating Open 2024"]
[Site "Dhaka"]
[Date "2024.01.23"]
[Round "9.4"]
[White "Anata, Choudhury"]
[Black "Sakline Mostafa, Sajid"]
[Result "0-1"]
[ECO "B45"]
[WhiteElo "2196"]
[BlackElo "2110"]
[Annotator "RC"]
[PlyCount "48"]
[EventDate "2024.01.16"]
[EventType "swiss"]
[EventCountry "BAN"]
[SourceTitle "playchess.com"]
[Source "ChessBase"]
[SourceQuality "1"]
[TimeControl "5400+30"]

1. e4 {[%emt 0:17:16]} c5 {[%emt 0:00:28]} 2. Nf3 {[%emt 0:00:11]} e6 {[%emt 0:00:02]} 3. d4 {[%emt 0:00:07]} cxd4 {[%emt 0:00:04]} 4. Nxd4 {[%emt 0:00:05]} Nf6 {[%emt 0:00:06]} 5. Nc3 {[%emt 0:00:06]} Nc6 {[%emt 0:00:05]} 6. Nxc6 {[%emt 0:00:06]} bxc6 {[%emt 0:00:02]} 7. e5 {[%emt 0:00:10]} Nd5 {[%emt 0:00:02]} 8. Ne4 {[%emt 0:00:10]} Qa5+ {[%emt 0:00:38]} 9. Bd2 {[%emt 0:02:50]} Qb6 {[%emt 0:01:00]} 10. c4 {[%emt 0:02:52]} Qxb2 {[%emt 0:05:35]} 11. Bd3 {[%emt 0:04:50]} Qd4 {[%emt 0:26:54]} 12. Ke2 {[%emt 0:02:18]} Ba6 {[%emt 0:16:24]} 13. Qa4 {[%emt 0:05:43]} Nb4 {[%emt 0:07:43]} 14. Qxb4 {[%emt 0:12:41]} Bxb4 {[%emt 0:00:19]} 15. Bxb4 {[%emt 0:00:07]} Qb2+ {[%emt 0:17:24]} 16. Bd2 {[%emt 0:00:15]} Qxe5 {[%emt 0:00:59]} 17. Bc3 {[%emt 0:01:40]} Qc7 {[%emt 0:04:47]} 18. Bxg7 {[%emt 0:05:18]} Rg8 {[%emt 0:06:41]} 19. Nf6+ {[%emt 0:10:00]} Ke7 {[%emt 0:00:04]} 20. Nxg8+ {[%emt 0:00:19]} Rxg8 {[%emt 0:00:03]} 21. Bc3 {[%emt 0:08:29]} Rxg2 {[%emt 0:02:34]} 22. Kf3 {[%emt 0:00:38]} Rxh2 {[%emt 0:02:07]} 23. Rhg1 {[%emt 0:00:52]} Rh3+ {[%emt 0:01:13]} 24. Ke2 {[%emt 0:00:06]} Bxc4 {[%emt 0:00:59]} 0-1

[Event "FIDE Rating Open 2024"]
[Site "Dhaka"]
[Date "2024.01.23"]
[Round "9.5"]
[White "Nayem, Haque"]
[Black "Mehdi Hasan Parag"]
[Result "1/2-1/2"]
[ECO "C68"]
[WhiteElo "2092"]
[BlackElo "2171"]
[Annotator "RC"]
[PlyCount "115"]
[EventDate "2024.01.16"]
[EventType "swiss"]
[EventCountry "BAN"]
[SourceTitle "playchess.com"]
[Source "ChessBase"]
[SourceQuality "1"]
[TimeControl "5400+30"]

1. e4 {[%emt 0:05:20]} e5 {[%emt 0:00:07]} 2. Nf3 {[%emt 0:00:15]} Nc6 {[%emt 0:00:04]} 3. Bb5 {[%emt 0:00:11]} a6 {[%emt 0:00:03]} 4. Bxc6 {[%emt 0:00:06]} dxc6 {[%emt 0:00:07]} 5. O-O {[%emt 0:00:37]} Qf6 {[%emt 0:00:30]} 6. d4 {[%emt 0:00:54]} exd4 {[%emt 0:00:04]} 7. Bg5 {[%emt 0:00:10]} Qd6 {[%emt 0:01:44]} 8. Nxd4 {[%emt 0:00:29]} Be7 {[%emt 0:00:37]} 9. Bxe7 {[%emt 0:06:52]} Nxe7 {[%emt 0:00:05]} 10. Nc3 {[%emt 0:01:14]} Bd7 {[%emt 0:01:03]} 11. Nb3 {[%emt 0:00:10]} O-O-O {[%emt 0:00:42]} 12. Qxd6 {[%emt 0:05:19]} cxd6 {[%emt 0:00:05]} 13. Rad1 {[%emt 0:00:24]} Kc7 {[%emt 0:00:27]} 14. Rd2 {[%emt 0:00:37]} Ng6 {[%emt 0:01:20]} 15. f4 {[%emt 0:03:58]} Rhe8 {[%emt 0:02:36]} 16. Nd4 {[%emt 0:08:42]} b5 {[%emt 0:01:12]} 17. f5 {[%emt 0:02:23]} Ne5 {[%emt 0:00:25]} 18. b3 {[%emt 0:00:56]} b4 {[%emt 0:00:36]} 19. Nce2 {[%emt 0:01:12]} c5 {[%emt 0:00:29]} 20. Nf3 {[%emt 0:01:10]} Bc6 {[%emt 0:02:31]} 21. Ng3 {[%emt 0:00:04]} f6 {[%emt 0:00:52]} 22. Nh5 {[%emt 0:10:35]} Rd7 {[%emt 0:03:58]} 23. Ng3 {[%emt 0:04:54]} a5 {[%emt 0:02:46]} 24. Rdd1 {[%emt 0:04:04]} Ng4 {[%emt 0:01:38]} 25. Rfe1 {[%emt 0:00:23]} Rde7 {[%emt 0:00:21]} 26. h3 {[%emt 0:04:29]} Nh6 {[%emt 0:00:20]} 27. Nd2 {[%emt 0:01:38]} d5 {[%emt 0:00:18]} 28. Kf2 {[%emt 0:00:41]} d4 {[%emt 0:01:19]} 29. Nh5 {[%emt 0:03:45]} g6 {[%emt 0:23:48]} 30. Nxf6 {[%emt 0:10:57]} Rf8 {[%emt 0:01:04]} 31. e5 {[%emt 0:04:16]} Nxf5 {[%emt 0:01:23]} 32. Nc4 {[%emt 0:00:04]} h5 {[%emt 0:01:56]} 33. Kg1 {[%emt 0:14:08]} Nh4 {[%emt 0:07:41]} 34. Rf1 {[%emt 0:06:33]} Rd8 {[%emt 0:03:15]} 35. Rf2 {[%emt 0:00:00]} Nf5 {[%emt 0:02:41]} 36. Re1 {[%emt 0:00:00]} a4 {[%emt 0:05:02]} 37. Kh2 {[%emt 0:00:00]} Bb5 {[%emt 0:04:36]} 38. g4 {[%emt 0:00:00]} hxg4 {[%emt 0:00:26]} 39. hxg4 {[%emt 0:00:00]} Rh8+ {[%emt 0:00:08]} 40. Kg1 {[%emt 0:00:00]} Bc6 {[%emt 0:00:32]} 41. Rh2 {[%emt 0:00:00]} Nh4 {[%emt 0:03:45]} 42. Kf2 {[%emt 0:00:00]} g5 {[%emt 0:00:29]} 43. Kg3 {[%emt 0:00:00]} axb3 {[%emt 0:06:14]} 44. axb3 {[%emt 0:00:00]} Rd8 {[%emt 0:06:24]} 45. Rd1 {[%emt 0:00:56]} Ng6 {[%emt 0:02:41]} 46. Rh5 {[%emt 0:01:27]} Nxe5 {[%emt 0:01:07]} 47. Rxg5 {[%emt 0:02:24]} Nxc4 {[%emt 0:00:20]} 48. bxc4 {[%emt 0:00:03]} Re2 {[%emt 0:08:37]} 49. Rxc5 {[%emt 0:01:00]} Rxc2 {[%emt 0:00:28]} 50. Nd5+ {[%emt 0:00:43]} Rxd5 {[%emt 0:00:31]} 51. Rxd5 {[%emt 0:00:11]} Bxd5 {[%emt 0:00:07]} 52. cxd5 {[%emt 0:00:08]} Rc4 {[%emt 0:00:41]} 53. Kf4 {[%emt 0:00:53]} Kd6 {[%emt 0:04:18]} 54. Ke4 {[%emt 0:00:11]} d3+ {[%emt 0:00:43]} 55. Kxd3 {[%emt 0:00:14]} Rxg4 {[%emt 0:00:06]} 56. Kc2 {[%emt 0:00:09]} Rg5 {[%emt 0:00:48]} 57. Kb3 {[%emt 0:00:02]} Rxd5 {[%emt 0:00:01]} 58. Rxd5+ {[%emt 0:00:06]} 1/2-1/2